[Event "Titled Tuesday Blitz September 27 Early 2022"]
[White "Mitrovic, Darko R"]
[Black "Samaganova, Aleksandra"]
[WhiteFideId "927023"]
[BlackFideId "13800221"]
[WhiteElo "2150"]
[BlackElo "1864"]
[Result "0-1"]
[Round "06"]
[TimeControl "180+1"]
[Date "2022.09.27"]
[WhiteClock "0:00:01"]
[BlackClock "0:00:03"]

1. d4 {[%clk 0:02:58]}  Nf6 {[%clk 0:02:59]} 2. c4 {[%clk 0:02:57]}  e6 {[%clk 0:02:59]} 3. Nf3 {[%clk 0:02:57]}  b6 {[%clk 0:02:59]} 4. g3 {[%clk 0:02:57]}  Bb7 {[%clk 0:02:59]} 5. Bg2 {[%clk 0:02:57]}  Be7 {[%clk 0:02:59]} 6. O-O {[%clk 0:02:57]}  O-O {[%clk 0:02:59]} 7. Nc3 {[%clk 0:02:57]}  Ne4 {[%clk 0:02:59]} 8. Nxe4 {[%clk 0:02:53]}  Bxe4 {[%clk 0:02:59]} 9. Ne1 {[%clk 0:02:53]}  Bxg2 {[%clk 0:02:58]} 10. Nxg2 {[%clk 0:02:53]}  d5 {[%clk 0:02:57]} 11. b3 {[%clk 0:02:50]}  Bf6 {[%clk 0:02:55]} 12. Bb2 {[%clk 0:02:43]}  Qd7 {[%clk 0:02:41]} 13. Rc1 {[%clk 0:02:41]}  dxc4 {[%clk 0:02:35]} 14. Rxc4 {[%clk 0:02:31]}  Rd8 {[%clk 0:02:29]} 15. Qc2 {[%clk 0:02:10]}  Na6 {[%clk 0:02:19]} 16. e3 {[%clk 0:01:40]}  Rac8 {[%clk 0:01:56]} 17. Rc1 {[%clk 0:01:38]}  h6 {[%clk 0:01:34]} 18. a4 {[%clk 0:01:36]}  Qe7 {[%clk 0:01:09]} 19. Nf4 {[%clk 0:01:27]}  g6 {[%clk 0:00:57]} 20. Bc3 {[%clk 0:01:09]}  c5 {[%clk 0:00:45]} 21. Be1 {[%clk 0:01:02]}  Rb8 {[%clk 0:00:36]} 22. b4 {[%clk 0:00:46]}  cxd4 {[%clk 0:00:24]} 23. exd4 {[%clk 0:00:36]}  Bxd4 {[%clk 0:00:24]} 24. Nxg6 {[%clk 0:00:22]}  fxg6 {[%clk 0:00:20]} 25. Qxg6+ {[%clk 0:00:22]}  Bg7 {[%clk 0:00:20]} 26. Bc3 {[%clk 0:00:16]}  e5 {[%clk 0:00:16]} 27. Rc6 {[%clk 0:00:08]}  Qf7 {[%clk 0:00:08]} 28. Qg4 {[%clk 0:00:07]}  Qd7 {[%clk 0:00:07]} 29. Qg6 {[%clk 0:00:06]}  Qf7 {[%clk 0:00:05]} 30. Qg4 {[%clk 0:00:06]}  Kh8 {[%clk 0:00:04]} 31. Rg6 {[%clk 0:00:04]}  Rb7 {[%clk 0:00:03]} 32. Re1 {[%clk 0:00:04]}  Re8 {[%clk 0:00:03]} 33. h4 {[%clk 0:00:02]}  Nb8 {[%clk 0:00:03]} 34. h5 {[%clk 0:00:01]}  Rbe7 {[%clk 0:00:03]} 35. b5 {[%clk 0:00:01]}  Nd7 {[%clk 0:00:03]} 0-1


[Site "https://www.chess.com"]

[Event "Titled Tuesday Blitz September 27 Early 2022"]
[White "Molina, Roberto Junio Brito"]
[Black "Winterberg, Lukas"]
[WhiteFideId "2109450"]
[BlackFideId "24622702"]
[WhiteElo "2403"]
[BlackElo "2349"]
[Result "0-1"]
[Round "06"]
[TimeControl "180+1"]
[Date "2022.09.27"]
[WhiteClock "0:00:30"]
[BlackClock "0:00:09"]

1. d4 {[%clk 0:03:00]}  Nf6 {[%clk 0:02:59]} 2. Nf3 {[%clk 0:03:00]}  d5 {[%clk 0:02:58]} 3. e3 {[%clk 0:03:01]}  c5 {[%clk 0:02:58]} 4. c3 {[%clk 0:03:00]}  Nc6 {[%clk 0:02:57]} 5. Nbd2 {[%clk 0:03:00]}  cxd4 {[%clk 0:02:53]} 6. exd4 {[%clk 0:02:59]}  Bf5 {[%clk 0:02:53]} 7. Nh4 {[%clk 0:02:58]}  Bd7 {[%clk 0:02:52]} 8. Bd3 {[%clk 0:02:58]}  e6 {[%clk 0:02:51]} 9. O-O {[%clk 0:02:56]}  Bd6 {[%clk 0:02:48]} 10. g3 {[%clk 0:02:55]}  g5 {[%clk 0:02:32]} 11. Nhf3 {[%clk 0:02:49]}  Rg8 {[%clk 0:02:32]} 12. Re1 {[%clk 0:02:45]}  Qc7 {[%clk 0:02:30]} 13. Nf1 {[%clk 0:02:43]}  h6 {[%clk 0:02:24]} 14. Qe2 {[%clk 0:02:31]}  O-O-O {[%clk 0:02:21]} 15. Ne5 {[%clk 0:02:30]}  Be8 {[%clk 0:01:55]} 16. f4 {[%clk 0:02:25]}  Ne4 {[%clk 0:01:39]} 17. Bxe4 {[%clk 0:02:06]}  dxe4 {[%clk 0:01:40]} 18. Nxc6 {[%clk 0:01:59]}  Bxc6 {[%clk 0:01:39]} 19. fxg5 {[%clk 0:01:55]}  hxg5 {[%clk 0:01:28]} 20. Ne3 {[%clk 0:01:39]}  Bxg3 {[%clk 0:00:57]} 21. hxg3 {[%clk 0:01:39]}  Qxg3+ {[%clk 0:00:58]} 22. Ng2 {[%clk 0:01:39]}  Rh8 {[%clk 0:00:58]} 23. Qe3 {[%clk 0:01:34]}  Qh2+ {[%clk 0:00:57]} 24. Kf2 {[%clk 0:01:34]}  Rh3 {[%clk 0:00:55]} 25. Qxg5 {[%clk 0:01:34]}  Rf3+ {[%clk 0:00:53]} 26. Ke2 {[%clk 0:01:33]}  Rg3 {[%clk 0:00:53]} 27. Qf4 {[%clk 0:01:10]}  Qxg2+ {[%clk 0:00:42]} 28. Kd1 {[%clk 0:01:08]}  Rxc3 {[%clk 0:00:28]} 29. Bd2 {[%clk 0:00:31]}  Rd3 {[%clk 0:00:24]} 30. Re2 {[%clk 0:00:32]}  Qg1+ {[%clk 0:00:22]} 31. Re1 {[%clk 0:00:31]}  Qxd4 {[%clk 0:00:22]} 32. Re2 {[%clk 0:00:31]}  Qxb2 {[%clk 0:00:21]} 33. Rc1 {[%clk 0:00:30]}  e3 {[%clk 0:00:10]} 34. Rc2 {[%clk 0:00:30]}  Qb1+ {[%clk 0:00:09]} 35. Rc1 {[%clk 0:00:30]}  Rxd2+ {[%clk 0:00:09]} 0-1


[Site "https://www.chess.com"]

[Event "Titled Tuesday Blitz September 27 Early 2022"]
[White "Papp, Levente"]
[Black "Bortnyk, Mykola"]
[WhiteFideId "751243"]
[BlackFideId "14120836"]
[WhiteElo "2341"]
[BlackElo "2582"]
[Result "1-0"]
[Round "06"]
[TimeControl "180+1"]
[Date "2022.09.27"]
[WhiteClock "0:00:13"]
[BlackClock "0:00:05"]

1. c4 {[%clk 0:03:00]}  e5 {[%clk 0:02:55]} 2. g3 {[%clk 0:03:00]}  Nc6 {[%clk 0:02:51]} 3. Nc3 {[%clk 0:02:59]}  g6 {[%clk 0:02:51]} 4. Bg2 {[%clk 0:02:59]}  Bg7 {[%clk 0:02:52]} 5. e3 {[%clk 0:03:00]}  Nge7 {[%clk 0:02:51]} 6. Nge2 {[%clk 0:03:00]}  d6 {[%clk 0:02:51]} 7. O-O {[%clk 0:02:57]}  h5 {[%clk 0:02:50]} 8. h3 {[%clk 0:02:57]}  Nf5 {[%clk 0:02:46]} 9. Rb1 {[%clk 0:02:36]}  a5 {[%clk 0:02:45]} 10. a3 {[%clk 0:02:36]}  O-O {[%clk 0:02:44]} 11. b4 {[%clk 0:02:35]}  axb4 {[%clk 0:02:45]} 12. axb4 {[%clk 0:02:35]}  Be6 {[%clk 0:02:37]} 13. Nd5 {[%clk 0:02:33]}  Qc8 {[%clk 0:02:11]} 14. b5 {[%clk 0:02:09]}  Nce7 {[%clk 0:02:03]} 15. e4 {[%clk 0:01:58]}  Bxd5 {[%clk 0:02:02]} 16. cxd5 {[%clk 0:01:58]}  Nd4 {[%clk 0:02:02]} 17. Nxd4 {[%clk 0:01:59]}  exd4 {[%clk 0:02:03]} 18. d3 {[%clk 0:01:47]}  c6 {[%clk 0:02:00]} 19. Bg5 {[%clk 0:01:19]}  f6 {[%clk 0:01:51]} 20. Bf4 {[%clk 0:01:18]}  Qd7 {[%clk 0:01:52]} 21. bxc6 {[%clk 0:01:11]}  bxc6 {[%clk 0:01:53]} 22. dxc6 {[%clk 0:01:12]}  Nxc6 {[%clk 0:01:51]} 23. Qb3+ {[%clk 0:01:11]}  Kh7 {[%clk 0:01:48]} 24. Qd5 {[%clk 0:01:09]}  Rfd8 {[%clk 0:01:41]} 25. Rfc1 {[%clk 0:00:56]}  Rac8 {[%clk 0:01:30]} 26. Kh2 {[%clk 0:00:43]}  h4 {[%clk 0:01:28]} 27. gxh4 {[%clk 0:00:41]}  Ne5 {[%clk 0:01:29]} 28. Qxd4 {[%clk 0:00:37]}  Rxc1 {[%clk 0:01:25]} 29. Rxc1 {[%clk 0:00:38]}  f5 {[%clk 0:01:24]} 30. Qe3 {[%clk 0:00:36]}  Re8 {[%clk 0:01:22]} 31. Qg3 {[%clk 0:00:33]}  Qf7 {[%clk 0:00:47]} 32. Rg1 {[%clk 0:00:23]}  Rf8 {[%clk 0:00:41]} 33. d4 {[%clk 0:00:20]}  Nc4 {[%clk 0:00:36]} 34. e5 {[%clk 0:00:18]}  dxe5 {[%clk 0:00:36]} 35. dxe5 {[%clk 0:00:19]}  Rd8 {[%clk 0:00:31]} 36. h5 {[%clk 0:00:16]}  gxh5 {[%clk 0:00:26]} 37. Bf3 {[%clk 0:00:16]}  Rg8 {[%clk 0:00:21]} 38. Bd5 {[%clk 0:00:15]}  Qa7 {[%clk 0:00:05]} 39. Qg6+ {[%clk 0:00:13]} 1-0


[Site "https://www.chess.com"]

[Event "Titled Tuesday Blitz September 27 Early 2022"]
[White "Pourkashiyan, Atousa"]
[Black "Broca Jimenez, Fernando"]
[WhiteFideId "12502014"]
[BlackFideId "5104742"]
[WhiteElo "2247"]
[BlackElo "2062"]
[Result "1-0"]
[Round "06"]
[TimeControl "180+1"]
[Date "2022.09.27"]
[WhiteClock "0:00:18"]
[BlackClock "0:00:05"]

1. g3 {[%clk 0:02:51]}  g6 {[%clk 0:02:44]} 2. Bg2 {[%clk 0:02:49]}  Bg7 {[%clk 0:02:40]} 3. Nf3 {[%clk 0:02:50]}  Nf6 {[%clk 0:02:40]} 4. O-O {[%clk 0:02:49]}  O-O {[%clk 0:02:41]} 5. c4 {[%clk 0:02:49]}  d6 {[%clk 0:02:42]} 6. Nc3 {[%clk 0:02:48]}  Nbd7 {[%clk 0:02:43]} 7. d4 {[%clk 0:02:48]}  e5 {[%clk 0:02:44]} 8. e4 {[%clk 0:02:42]}  c6 {[%clk 0:02:45]} 9. Re1 {[%clk 0:02:38]}  Qc7 {[%clk 0:02:44]} 10. h3 {[%clk 0:02:34]}  Re8 {[%clk 0:02:43]} 11. Bg5 {[%clk 0:02:25]}  h6 {[%clk 0:02:42]} 12. Be3 {[%clk 0:02:25]}  Nf8 {[%clk 0:02:25]} 13. Rc1 {[%clk 0:02:18]}  Bd7 {[%clk 0:02:05]} 14. Qd2 {[%clk 0:02:13]}  Kh7 {[%clk 0:02:03]} 15. Red1 {[%clk 0:01:53]}  Rad8 {[%clk 0:02:02]} 16. d5 {[%clk 0:01:35]}  c5 {[%clk 0:01:55]} 17. Nh2 {[%clk 0:01:26]}  g5 {[%clk 0:01:02]} 18. f4 {[%clk 0:01:17]}  exf4 {[%clk 0:00:59]} 19. gxf4 {[%clk 0:01:18]}  gxf4 {[%clk 0:00:59]} 20. Bxf4 {[%clk 0:01:19]}  Ng6 {[%clk 0:00:59]} 21. Be3 {[%clk 0:01:13]}  Ne5 {[%clk 0:00:48]} 22. Ne2 {[%clk 0:01:02]}  Nh5 {[%clk 0:00:38]} 23. Rf1 {[%clk 0:00:54]}  Rg8 {[%clk 0:00:34]} 24. Nf4 {[%clk 0:00:50]}  Nxf4 {[%clk 0:00:20]} 25. Bxf4 {[%clk 0:00:51]}  Rdf8 {[%clk 0:00:20]} 26. Kh1 {[%clk 0:00:51]}  Bc8 {[%clk 0:00:19]} 27. Nf3 {[%clk 0:00:38]}  Qe7 {[%clk 0:00:18]} 28. Nxe5 {[%clk 0:00:34]}  Bxe5 {[%clk 0:00:18]} 29. Bxe5 {[%clk 0:00:27]}  Qxe5 {[%clk 0:00:18]} 30. Qf4 {[%clk 0:00:19]}  Qxb2 {[%clk 0:00:13]} 31. Rf2 {[%clk 0:00:19]}  Qe5 {[%clk 0:00:09]} 32. Rcf1 {[%clk 0:00:18]}  Qxf4 {[%clk 0:00:07]} 33. Rxf4 {[%clk 0:00:19]}  Rg7 {[%clk 0:00:07]} 34. Rf6 {[%clk 0:00:19]}  Rd8 {[%clk 0:00:05]} 35. Rxf7 {[%clk 0:00:19]}  Kg8 {[%clk 0:00:05]} 36. R7f6 {[%clk 0:00:18]} 1-0


[Site "https://www.chess.com"]

[Event "Titled Tuesday Blitz September 27 Early 2022"]
[White "Przybylski, Wojciech"]
[Black "Smietanska, Wiktoria"]
[WhiteFideId "1117599"]
[BlackFideId "21869359"]
[WhiteElo "2133"]
[BlackElo "1847"]
[Result "1-0"]
[Round "06"]
[TimeControl "180+1"]
[Date "2022.09.27"]
[WhiteClock "0:00:19"]
[BlackClock "0:00:06"]

1. e4 {[%clk 0:02:58]}  c5 {[%clk 0:02:44]} 2. Nf3 {[%clk 0:02:57]}  d6 {[%clk 0:02:43]} 3. a4 {[%clk 0:02:56]}  Nf6 {[%clk 0:02:41]} 4. d3 {[%clk 0:02:55]}  Nc6 {[%clk 0:02:38]} 5. g3 {[%clk 0:02:55]}  g6 {[%clk 0:02:36]} 6. Bg2 {[%clk 0:02:56]}  Bg7 {[%clk 0:02:31]} 7. O-O {[%clk 0:02:56]}  O-O {[%clk 0:02:30]} 8. Re1 {[%clk 0:02:55]}  e6 {[%clk 0:02:26]} 9. c3 {[%clk 0:02:55]}  d5 {[%clk 0:02:23]} 10. e5 {[%clk 0:02:54]}  Nd7 {[%clk 0:02:22]} 11. d4 {[%clk 0:02:54]}  cxd4 {[%clk 0:02:21]} 12. cxd4 {[%clk 0:02:55]}  a6 {[%clk 0:02:14]} 13. Bg5 {[%clk 0:02:53]}  Qb6 {[%clk 0:02:11]} 14. Qd2 {[%clk 0:02:53]}  Qb4 {[%clk 0:01:59]} 15. Nc3 {[%clk 0:02:52]}  Re8 {[%clk 0:01:53]} 16. a5 {[%clk 0:02:44]}  Nxa5 {[%clk 0:01:41]} 17. Ra4 {[%clk 0:02:44]}  Qb6 {[%clk 0:01:32]} 18. Nxd5 {[%clk 0:02:43]}  exd5 {[%clk 0:01:29]} 19. Rxa5 {[%clk 0:02:44]}  Qe6 {[%clk 0:01:18]} 20. Bh6 {[%clk 0:02:40]}  Nb6 {[%clk 0:01:12]} 21. b3 {[%clk 0:02:39]}  Bd7 {[%clk 0:01:05]} 22. Rc1 {[%clk 0:02:17]}  Bb5 {[%clk 0:00:57]} 23. Bxg7 {[%clk 0:01:58]}  Kxg7 {[%clk 0:00:56]} 24. Rc5 {[%clk 0:01:58]}  Rac8 {[%clk 0:00:50]} 25. h3 {[%clk 0:01:47]}  Rxc5 {[%clk 0:00:43]} 26. dxc5 {[%clk 0:01:46]}  Nd7 {[%clk 0:00:41]} 27. Nd4 {[%clk 0:01:40]}  Qxe5 {[%clk 0:00:40]} 28. Nxb5 {[%clk 0:01:40]}  axb5 {[%clk 0:00:38]} 29. Rxb5 {[%clk 0:01:40]}  Qe1+ {[%clk 0:00:27]} 30. Qxe1 {[%clk 0:01:37]}  Rxe1+ {[%clk 0:00:28]} 31. Kh2 {[%clk 0:01:37]}  d4 {[%clk 0:00:25]} 32. b4 {[%clk 0:01:21]}  d3 {[%clk 0:00:20]} 33. Rxb7 {[%clk 0:00:31]}  Ne5 {[%clk 0:00:15]} 34. Bd5 {[%clk 0:00:20]}  d2 {[%clk 0:00:13]} 35. Bb3 {[%clk 0:00:20]}  Rd1 {[%clk 0:00:06]} 36. Bxd1 {[%clk 0:00:19]} 1-0


[Site "https://www.chess.com"]

[Event "Titled Tuesday Blitz September 27 Early 2022"]
[White "Quispe Santacruz, Javier"]
[Black "Samarth, J Rao"]
[WhiteFideId "3800920"]
[BlackFideId "46652370"]
[WhiteElo "1930"]
[BlackElo "1514"]
[Result "1/2-1/2"]
[Round "06"]
[TimeControl "180+1"]
[Date "2022.09.27"]
[WhiteClock "0:00:21"]
[BlackClock "0:01:45"]

1. e4 {[%clk 0:03:00]}  c5 {[%clk 0:02:53]} 2. Nf3 {[%clk 0:03:00]}  d6 {[%clk 0:02:53]} 3. Bb5+ {[%clk 0:03:00]}  Nd7 {[%clk 0:02:53]} 4. d4 {[%clk 0:02:58]}  cxd4 {[%clk 0:02:53]} 5. Qxd4 {[%clk 0:02:58]}  a6 {[%clk 0:02:54]} 6. Bxd7+ {[%clk 0:02:57]}  Bxd7 {[%clk 0:02:55]} 7. Nc3 {[%clk 0:02:57]}  e5 {[%clk 0:02:56]} 8. Qd3 {[%clk 0:02:56]}  h6 {[%clk 0:02:55]} 9. O-O {[%clk 0:02:56]}  Nf6 {[%clk 0:02:56]} 10. a4 {[%clk 0:02:35]}  Rc8 {[%clk 0:02:56]} 11. b3 {[%clk 0:02:25]}  Rxc3 {[%clk 0:02:51]} 12. Qxc3 {[%clk 0:02:24]}  Nxe4 {[%clk 0:02:52]} 13. Qe3 {[%clk 0:02:17]}  Bc6 {[%clk 0:02:50]} 14. Ba3 {[%clk 0:02:11]}  Be7 {[%clk 0:02:48]} 15. Rad1 {[%clk 0:02:06]}  Qc7 {[%clk 0:02:48]} 16. Nd2 {[%clk 0:01:55]}  f5 {[%clk 0:02:43]} 17. Nc4 {[%clk 0:01:52]}  b5 {[%clk 0:02:40]} 18. axb5 {[%clk 0:01:52]}  axb5 {[%clk 0:02:41]} 19. Nb6 {[%clk 0:01:36]}  f4 {[%clk 0:02:32]} 20. Qh3 {[%clk 0:01:22]}  Qxb6 {[%clk 0:02:25]} 21. Qh5+ {[%clk 0:01:13]}  Kf8 {[%clk 0:02:20]} 22. Qf5+ {[%clk 0:01:06]}  Nf6 {[%clk 0:02:20]} 23. Bxd6 {[%clk 0:01:03]}  Bxd6 {[%clk 0:02:19]} 24. Rxd6 {[%clk 0:01:04]}  Kf7 {[%clk 0:02:07]} 25. Qe6+ {[%clk 0:00:58]}  Kg6 {[%clk 0:02:07]} 26. Rxc6 {[%clk 0:00:54]}  Qd4 {[%clk 0:02:06]} 27. Qg4+ {[%clk 0:00:50]}  Kh7 {[%clk 0:02:03]} 28. Qf5+ {[%clk 0:00:49]}  Kg8 {[%clk 0:01:47]} 29. Rc8+ {[%clk 0:00:37]}  Kf7 {[%clk 0:01:47]} 30. Rxh8 {[%clk 0:00:33]}  Qc5 {[%clk 0:01:46]} 31. Rc8 {[%clk 0:00:30]}  Qd5 {[%clk 0:01:46]} 32. Rc7+ {[%clk 0:00:28]}  Kf8 {[%clk 0:01:46]} 33. Qc8+ {[%clk 0:00:24]}  Ne8 {[%clk 0:01:46]} 34. Qf5+ {[%clk 0:00:23]}  Nf6 {[%clk 0:01:45]} 35. Rc8+ {[%clk 0:00:21]} 1/2-1/2


[Site "https://www.chess.com"]

[Event "Titled Tuesday Blitz September 27 Early 2022"]
[White "Rama, Tejas"]
[Black "Forgacs, Attila Jr."]
[WhiteFideId "30907381"]
[BlackFideId "773654"]
[WhiteElo "1513"]
[BlackElo "2062"]
[Result "1-0"]
[Round "06"]
[TimeControl "180+1"]
[Date "2022.09.27"]
[WhiteClock "0:00:06"]
[BlackClock "0:00:06"]

1. d4 {[%clk 0:03:00]}  Nf6 {[%clk 0:02:59]} 2. c4 {[%clk 0:03:00]}  g6 {[%clk 0:02:59]} 3. Nf3 {[%clk 0:03:00]}  Bg7 {[%clk 0:02:58]} 4. Nc3 {[%clk 0:03:00]}  d5 {[%clk 0:02:59]} 5. Qb3 {[%clk 0:03:00]}  dxc4 {[%clk 0:02:58]} 6. Qxc4 {[%clk 0:03:00]}  O-O {[%clk 0:02:57]} 7. e4 {[%clk 0:02:59]}  Na6 {[%clk 0:02:50]} 8. Be2 {[%clk 0:02:58]}  c5 {[%clk 0:02:47]} 9. d5 {[%clk 0:02:59]}  Nd7 {[%clk 0:02:29]} 10. O-O {[%clk 0:02:36]}  Nb6 {[%clk 0:02:14]} 11. Qd3 {[%clk 0:02:30]}  c4 {[%clk 0:02:04]} 12. Qc2 {[%clk 0:02:01]}  e6 {[%clk 0:01:58]} 13. Bg5 {[%clk 0:01:54]}  Qc7 {[%clk 0:01:56]} 14. Rad1 {[%clk 0:01:38]}  exd5 {[%clk 0:01:56]} 15. exd5 {[%clk 0:01:35]}  Nb4 {[%clk 0:01:49]} 16. Qc1 {[%clk 0:01:14]}  Bxc3 {[%clk 0:01:35]} 17. Qxc3 {[%clk 0:01:11]}  N4xd5 {[%clk 0:01:34]} 18. Qd4 {[%clk 0:01:07]}  Be6 {[%clk 0:01:28]} 19. Bh6 {[%clk 0:01:06]}  f6 {[%clk 0:01:28]} 20. Bxf8 {[%clk 0:01:05]}  Rxf8 {[%clk 0:01:21]} 21. Rfe1 {[%clk 0:01:02]}  Bf7 {[%clk 0:01:13]} 22. Rc1 {[%clk 0:00:40]}  Rd8 {[%clk 0:01:06]} 23. Bxc4 {[%clk 0:00:32]}  Nxc4 {[%clk 0:00:46]} 24. Qxc4 {[%clk 0:00:32]}  Qd7 {[%clk 0:00:36]} 25. Rcd1 {[%clk 0:00:28]}  Qf5 {[%clk 0:00:35]} 26. Qa4 {[%clk 0:00:22]}  Kg7 {[%clk 0:00:32]} 27. Qxa7 {[%clk 0:00:19]}  Qg4 {[%clk 0:00:31]} 28. h3 {[%clk 0:00:17]}  Qf5 {[%clk 0:00:21]} 29. Qxb7 {[%clk 0:00:13]}  Rc8 {[%clk 0:00:21]} 30. Rxd5 {[%clk 0:00:11]}  Qxd5 {[%clk 0:00:18]} 31. Qxc8 {[%clk 0:00:11]}  Qa5 {[%clk 0:00:18]} 32. Qc3 {[%clk 0:00:10]}  Qxa2 {[%clk 0:00:17]} 33. Re7 {[%clk 0:00:10]}  Qb1+ {[%clk 0:00:16]} 34. Kh2 {[%clk 0:00:10]}  Qa1 {[%clk 0:00:11]} 35. Qc7 {[%clk 0:00:09]}  Kh6 {[%clk 0:00:10]} 36. Rxf7 {[%clk 0:00:08]}  g5 {[%clk 0:00:07]} 37. Rxh7+ {[%clk 0:00:07]}  Kg6 {[%clk 0:00:08]} 38. g4 {[%clk 0:00:06]}  f5 {[%clk 0:00:06]} 39. Qf7# {[%clk 0:00:06]} 1-0


[Site "https://www.chess.com"]

[Event "Titled Tuesday Blitz September 27 Early 2022"]
[White "Ribeiro, Matheus Mendes Domingues"]
[Black "Melikhov, Evgeny V."]
[WhiteFideId "324226923"]
[BlackFideId "4122046"]
[WhiteElo "2047"]
[BlackElo "1963"]
[Result "1-0"]
[Round "06"]
[TimeControl "180+1"]
[Date "2022.09.27"]
[WhiteClock "0:02:06"]
[BlackClock "0:01:16"]

1. c4 {[%clk 0:03:00]}  e5 {[%clk 0:02:59]} 2. Nc3 {[%clk 0:03:01]}  d6 {[%clk 0:02:59]} 3. Nf3 {[%clk 0:03:01]}  f5 {[%clk 0:02:59]} 4. g3 {[%clk 0:02:58]}  Nf6 {[%clk 0:02:59]} 5. Bg2 {[%clk 0:02:59]}  Be7 {[%clk 0:02:59]} 6. O-O {[%clk 0:03:00]}  O-O {[%clk 0:02:59]} 7. d4 {[%clk 0:03:01]}  e4 {[%clk 0:02:59]} 8. Nd2 {[%clk 0:03:02]}  a5 {[%clk 0:02:57]} 9. f3 {[%clk 0:03:02]}  exf3 {[%clk 0:02:57]} 10. Bxf3 {[%clk 0:03:03]}  c6 {[%clk 0:02:56]} 11. e4 {[%clk 0:03:03]}  fxe4 {[%clk 0:02:53]} 12. Ndxe4 {[%clk 0:03:04]}  Nxe4 {[%clk 0:02:49]} 13. Nxe4 {[%clk 0:03:05]}  Bh3 {[%clk 0:02:48]} 14. Bg2 {[%clk 0:03:03]}  Bxg2 {[%clk 0:02:45]} 15. Kxg2 {[%clk 0:03:03]}  Rxf1 {[%clk 0:02:37]} 16. Qxf1 {[%clk 0:03:04]}  Nd7 {[%clk 0:02:36]} 17. Qf5 {[%clk 0:03:04]}  Nf6 {[%clk 0:02:24]} 18. Bf4 {[%clk 0:03:02]}  Nxe4 {[%clk 0:02:17]} 19. Qxe4 {[%clk 0:03:03]}  Qd7 {[%clk 0:02:12]} 20. Re1 {[%clk 0:03:01]}  Bf8 {[%clk 0:02:12]} 21. d5 {[%clk 0:02:40]}  Rc8 {[%clk 0:01:59]} 22. b3 {[%clk 0:02:36]}  b5 {[%clk 0:01:42]} 23. dxc6 {[%clk 0:02:34]}  Qxc6 {[%clk 0:01:42]} 24. Qxc6 {[%clk 0:02:31]}  Rxc6 {[%clk 0:01:41]} 25. cxb5 {[%clk 0:02:32]}  Rc2+ {[%clk 0:01:35]} 26. Kh3 {[%clk 0:02:32]}  Rxa2 {[%clk 0:01:32]} 27. Re8 {[%clk 0:02:17]}  Kf7 {[%clk 0:01:30]} 28. Rxf8+ {[%clk 0:02:11]}  Kxf8 {[%clk 0:01:30]} 29. b6 {[%clk 0:02:12]}  Rb2 {[%clk 0:01:28]} 30. b7 {[%clk 0:02:11]}  Rxb3 {[%clk 0:01:24]} 31. Bxd6+ {[%clk 0:02:11]}  Ke8 {[%clk 0:01:24]} 32. b8=Q+ {[%clk 0:02:11]}  Rxb8 {[%clk 0:01:23]} 33. Bxb8 {[%clk 0:02:12]}  Kd7 {[%clk 0:01:23]} 34. Be5 {[%clk 0:02:08]}  g6 {[%clk 0:01:21]} 35. Kg4 {[%clk 0:02:08]}  Ke6 {[%clk 0:01:21]} 36. Ba1 {[%clk 0:02:06]}  h6 {[%clk 0:01:22]} 37. Bg7 {[%clk 0:02:05]}  h5+ {[%clk 0:01:16]} 38. Kg5 {[%clk 0:02:06]}  Kf7 {[%clk 0:01:16]} 39. Ba1 {[%clk 0:02:06]}  a4 {[%clk 0:01:16]} 40. Bb2 {[%clk 0:02:06]} 1-0


[Site "https://www.chess.com"]

[Event "Titled Tuesday Blitz September 27 Early 2022"]
[White "Riehle, Marco"]
[Black "Sprenar, Petr"]
[WhiteFideId "12904392"]
[BlackFideId "397164"]
[WhiteElo "2462"]
[BlackElo "2153"]
[Result "1-0"]
[Round "06"]
[TimeControl "180+1"]
[Date "2022.09.27"]
[WhiteClock "0:00:30"]
[BlackClock "0:00:03"]

1. e4 {[%clk 0:03:00]}  c5 {[%clk 0:03:00]} 2. a3 {[%clk 0:02:59]}  b6 {[%clk 0:02:52]} 3. b4 {[%clk 0:02:56]}  Bb7 {[%clk 0:02:52]} 4. Nc3 {[%clk 0:02:55]}  e6 {[%clk 0:02:52]} 5. Nf3 {[%clk 0:02:54]}  Nc6 {[%clk 0:02:51]} 6. b5 {[%clk 0:02:54]}  Nd4 {[%clk 0:02:51]} 7. Bb2 {[%clk 0:02:54]}  Nf6 {[%clk 0:02:50]} 8. d3 {[%clk 0:02:54]}  Nxf3+ {[%clk 0:02:34]} 9. Qxf3 {[%clk 0:02:53]}  Be7 {[%clk 0:02:33]} 10. Be2 {[%clk 0:02:53]}  O-O {[%clk 0:02:33]} 11. O-O {[%clk 0:02:53]}  d5 {[%clk 0:02:32]} 12. exd5 {[%clk 0:02:51]}  exd5 {[%clk 0:02:14]} 13. Rfe1 {[%clk 0:02:50]}  Qd7 {[%clk 0:02:06]} 14. Rad1 {[%clk 0:02:47]}  d4 {[%clk 0:02:01]} 15. Ne4 {[%clk 0:02:47]}  Qxb5 {[%clk 0:01:28]} 16. Bxd4 {[%clk 0:02:44]}  cxd4 {[%clk 0:01:22]} 17. Nxf6+ {[%clk 0:02:44]}  Bxf6 {[%clk 0:01:23]} 18. Qxb7 {[%clk 0:02:45]}  Qa5 {[%clk 0:01:07]} 19. Bf3 {[%clk 0:02:16]}  Rae8 {[%clk 0:01:07]} 20. Rxe8 {[%clk 0:02:10]}  Rxe8 {[%clk 0:01:06]} 21. g3 {[%clk 0:02:10]}  g6 {[%clk 0:00:57]} 22. h4 {[%clk 0:01:46]}  Kg7 {[%clk 0:00:56]} 23. h5 {[%clk 0:01:46]}  gxh5 {[%clk 0:00:55]} 24. Kg2 {[%clk 0:01:37]}  Re7 {[%clk 0:00:53]} 25. Qc8 {[%clk 0:01:34]}  Re5 {[%clk 0:00:35]} 26. Rh1 {[%clk 0:01:28]}  Qc5 {[%clk 0:00:33]} 27. Qd7 {[%clk 0:01:25]}  Qxa3 {[%clk 0:00:20]} 28. Bxh5 {[%clk 0:01:23]}  Qe7 {[%clk 0:00:19]} 29. Qc8 {[%clk 0:01:15]}  a5 {[%clk 0:00:18]} 30. Bf3 {[%clk 0:01:14]}  h6 {[%clk 0:00:17]} 31. Rb1 {[%clk 0:01:04]}  b5 {[%clk 0:00:17]} 32. Qg4+ {[%clk 0:01:02]}  Rg5 {[%clk 0:00:17]} 33. Qf4 {[%clk 0:01:02]}  a4 {[%clk 0:00:16]} 34. Bc6 {[%clk 0:00:57]}  a3 {[%clk 0:00:14]} 35. Rh1 {[%clk 0:00:50]}  Qc5 {[%clk 0:00:11]} 36. Be4 {[%clk 0:00:47]}  Qe5 {[%clk 0:00:09]} 37. Qh4 {[%clk 0:00:46]}  h5 {[%clk 0:00:09]} 38. Qh3 {[%clk 0:00:46]}  Qe6 {[%clk 0:00:08]} 39. Qh2 {[%clk 0:00:44]}  a2 {[%clk 0:00:08]} 40. Ra1 {[%clk 0:00:42]}  b4 {[%clk 0:00:07]} 41. f4 {[%clk 0:00:39]}  Ra5 {[%clk 0:00:08]} 42. f5 {[%clk 0:00:38]}  b3 {[%clk 0:00:08]} 43. fxe6 {[%clk 0:00:34]}  b2 {[%clk 0:00:07]} 44. Rxa2 {[%clk 0:00:29]}  Rxa2 {[%clk 0:00:06]} 45. Qxh5 {[%clk 0:00:29]}  fxe6 {[%clk 0:00:04]} 46. Qh7+ {[%clk 0:00:29]}  Kf8 {[%clk 0:00:03]} 47. Qb7 {[%clk 0:00:30]} 1-0


[Site "https://www.chess.com"]